[Event "*** Titled Tuesday Blitz"]
[Site "Chess.com"]
[Date "2021.04.20"]
[Round "5"]
[White "KonstantinB_1983"]
[Black "tteshan"]
[Result "1-0"]
[WhiteElo "2505"]
[BlackElo "2256"]
[TimeControl "180+1"]
[EndTime "10:54:50 PDT"]
[Termination "KonstantinB_1983 won by resignation"]

1. d4 {[%clk 0:03:00.9]} 1... d5 {[%clk 0:02:57.6]} 2. c4 {[%clk 0:03:01]} 2...
dxc4 {[%clk 0:02:56.3]} 3. Nf3 {[%clk 0:02:58.7]} 3... Nf6 {[%clk 0:02:56.5]} 4.
Nc3 {[%clk 0:02:57.1]} 4... a6 {[%clk 0:02:55.5]} 5. a4 {[%clk 0:02:55.9]} 5...
Nc6 {[%clk 0:02:55.9]} 6. e3 {[%clk 0:02:53]} 6... Na5 {[%clk 0:02:55.7]} 7. Ne5
{[%clk 0:02:49.5]} 7... Be6 {[%clk 0:02:53.1]} 8. Be2 {[%clk 0:02:44.5]} 8... g6
{[%clk 0:02:51.1]} 9. O-O {[%clk 0:02:38.5]} 9... Bg7 {[%clk 0:02:49.9]} 10. Qc2
{[%clk 0:02:38.8]} 10... O-O {[%clk 0:02:47.1]} 11. e4 {[%clk 0:02:31]} 11...
Nb3 {[%clk 0:02:41.7]} 12. Rb1 {[%clk 0:02:26.5]} 12... Nxd4 {[%clk 0:02:41.6]}
13. Qd1 {[%clk 0:02:24.4]} 13... Nxe2+ {[%clk 0:02:41.3]} 14. Qxe2 {[%clk
0:02:23.7]} 14... Qd4 {[%clk 0:02:12.3]} 15. Nf3 {[%clk 0:02:18]} 15... Qc5
{[%clk 0:01:54.8]} 16. Be3 {[%clk 0:02:16]} 16... Qc6 {[%clk 0:01:55]} 17. Nd4
{[%clk 0:02:13.8]} 17... Qd7 {[%clk 0:01:33.8]} 18. Rfd1 {[%clk 0:02:11.8]}
18... Qc8 {[%clk 0:01:31.2]} 19. Nxe6 {[%clk 0:02:02.2]} 19... Qxe6 {[%clk
0:01:30.3]} 20. f3 {[%clk 0:02:02.7]} 20... c6 {[%clk 0:01:28.7]} 21. a5 {[%clk
0:01:51.6]} 21... Nd7 {[%clk 0:01:24.8]} 22. Rbc1 {[%clk 0:01:45.6]} 22... Ne5
{[%clk 0:01:23.1]} 23. Na4 {[%clk 0:01:36.3]} 23... Nd3 {[%clk 0:01:20.2]} 24.
Rc2 {[%clk 0:01:35.3]} 24... Rad8 {[%clk 0:01:18.4]} 25. Nb6 {[%clk 0:01:31.7]}
25... Bd4 {[%clk 0:00:22.9]} 26. Nxc4 {[%clk 0:01:13.1]} 26... Nf4 {[%clk
0:00:16.3]} 27. Qf2 {[%clk 0:00:56.8]} 27... Bxe3 {[%clk 0:00:07.2]} 28. Nxe3
{[%clk 0:00:54.2]} 28... Rxd1+ {[%clk 0:00:07.7]} 29. Nxd1 {[%clk 0:00:53.7]}
29... Rd8 {[%clk 0:00:08.6]} 30. Rd2 {[%clk 0:00:50.1]} 30... Nd3 {[%clk
0:00:06.2]} 31. Qe3 {[%clk 0:00:48.1]} 31... Qb3 {[%clk 0:00:04.9]} 32. h4
{[%clk 0:00:40.9]} 32... c5 {[%clk 0:00:05.1]} 33. h5 {[%clk 0:00:35.2]} 33...
c4 {[%clk 0:00:05.1]} 34. h6 {[%clk 0:00:34.6]} 34... Qb5 {[%clk 0:00:03.5]} 35.
Nc3 {[%clk 0:00:32.2]} 35... Qxa5 {[%clk 0:00:03.4]} 36. Nd5 {[%clk 0:00:29.5]}
36... Qa1+ {[%clk 0:00:02.3]} 37. Kh2 {[%clk 0:00:27.8]} 37... Rd7 {[%clk
0:00:02.8]} 38. Qd4 {[%clk 0:00:25.6]} 38... f6 {[%clk 0:00:01.9]} 39. Nxf6+
{[%clk 0:00:24.3]} 39... exf6 {[%clk 0:00:02.1]} 40. Qxd7 {[%clk 0:00:23.9]}
40... Qe1 {[%clk 0:00:02.1]} 1-0

[Event "*** Titled Tuesday Blitz"]
[Site "Chess.com"]
[Date "2021.04.20"]
[Round "5"]
[White "draksbg"]
[Black "attack2mateU"]
[Result "1-0"]
[WhiteElo "2523"]
[BlackElo "2693"]
[TimeControl "180+1"]
[EndTime "10:54:55 PDT"]
[Termination "draksbg won by checkmate"]

1. e4 {[%clk 0:03:00.1]} 1... c5 {[%clk 0:03:00.1]} 2. Nf3 {[%clk 0:02:59.9]}
2... d6 {[%clk 0:03:00.2]} 3. Bb5+ {[%clk 0:02:59.3]} 3... Nd7 {[%clk 0:03:00]}
4. O-O {[%clk 0:02:59.2]} 4... a6 {[%clk 0:03:00.2]} 5. Bd3 {[%clk 0:02:58.3]}
5... Ngf6 {[%clk 0:02:59.8]} 6. Re1 {[%clk 0:02:56.6]} 6... e6 {[%clk
0:02:59.7]} 7. c3 {[%clk 0:02:55.9]} 7... b5 {[%clk 0:02:59.7]} 8. c4 {[%clk
0:02:49.2]} 8... Bb7 {[%clk 0:02:19.6]} 9. cxb5 {[%clk 0:02:44.3]} 9... axb5
{[%clk 0:02:20.5]} 10. Bxb5 {[%clk 0:02:43.4]} 10... Nxe4 {[%clk 0:02:13.4]} 11.
d4 {[%clk 0:02:41.8]} 11... Be7 {[%clk 0:02:07.2]} 12. dxc5 {[%clk 0:02:36.1]}
12... Nxc5 {[%clk 0:02:06.2]} 13. Bf4 {[%clk 0:02:36.6]} 13... O-O {[%clk
0:01:50.9]} 14. Nc3 {[%clk 0:02:35.9]} 14... d5 {[%clk 0:01:46.3]} 15. Rc1
{[%clk 0:02:26.9]} 15... Nf6 {[%clk 0:01:40.5]} 16. b4 {[%clk 0:02:25.9]} 16...
Nce4 {[%clk 0:01:40.4]} 17. Qd4 {[%clk 0:02:10.2]} 17... Nxc3 {[%clk 0:01:23.4]}
18. Rxc3 {[%clk 0:02:09.9]} 18... Rxa2 {[%clk 0:01:22.2]} 19. Rc7 {[%clk
0:02:09.3]} 19... Ba8 {[%clk 0:01:05.3]} 20. Rec1 {[%clk 0:01:57.6]} 20... Bd6
{[%clk 0:00:52.9]} 21. Bxd6 {[%clk 0:01:50.3]} 21... Qxd6 {[%clk 0:00:53.8]} 22.
Ne5 {[%clk 0:01:51.1]} 22... h5 {[%clk 0:00:27.6]} 23. Bd3 {[%clk 0:01:40.5]}
23... Ng4 {[%clk 0:00:20.1]} 24. Nxg4 {[%clk 0:01:34.3]} 24... hxg4 {[%clk
0:00:21]} 25. Qxg4 {[%clk 0:01:25.9]} 25... e5 {[%clk 0:00:21]} 26. h4 {[%clk
0:01:22.1]} 26... e4 {[%clk 0:00:21]} 27. Bf1 {[%clk 0:01:20.4]} 27... Qf6
{[%clk 0:00:17.8]} 28. Qg3 {[%clk 0:01:16.4]} 28... Ra1 {[%clk 0:00:16.4]} 29.
Rxa1 {[%clk 0:01:10.9]} 29... Qxa1 {[%clk 0:00:17.3]} 30. h5 {[%clk 0:01:11.8]}
30... Qf6 {[%clk 0:00:16.1]} 31. b5 {[%clk 0:01:02.9]} 31... d4 {[%clk
0:00:15.7]} 32. Bc4 {[%clk 0:01:01.6]} 32... d3 {[%clk 0:00:16]} 33. Rd7 {[%clk
0:00:57]} 33... Kh7 {[%clk 0:00:10.1]} 34. b6 {[%clk 0:00:52.4]} 34... Qxb6
{[%clk 0:00:09.9]} 35. Bxf7 {[%clk 0:00:50.7]} 35... Qb1+ {[%clk 0:00:09.6]} 36.
Kh2 {[%clk 0:00:50.6]} 36... Qb8 {[%clk 0:00:08.4]} 37. Rc7 {[%clk 0:00:36.2]}
37... Qb6 {[%clk 0:00:05.8]} 38. Be6 {[%clk 0:00:25]} 38... Kh6 {[%clk
0:00:01.6]} 39. Qxg7+ {[%clk 0:00:24.2]} 39... Kxh5 {[%clk 0:00:02.5]} 40. Bg4+
{[%clk 0:00:23.6]} 40... Kh4 {[%clk 0:00:02.4]} 41. g3# {[%clk 0:00:23.8]} 1-0

[Event "*** Titled Tuesday Blitz"]
[Site "Chess.com"]
[Date "2021.04.20"]
[Round "5"]
[White "Kobalia"]
[Black "korbul"]
[Result "1-0"]
[WhiteElo "2786"]
[BlackElo "2587"]
[TimeControl "180+1"]
[EndTime "10:54:56 PDT"]
[Termination "Kobalia won by checkmate"]

1. e4 {[%clk 0:03:00.9]} 1... c5 {[%clk 0:02:59.6]} 2. Nf3 {[%clk 0:03:00.6]}
2... e6 {[%clk 0:02:59.7]} 3. g3 {[%clk 0:02:59.9]} 3... Nc6 {[%clk 0:02:58.7]}
4. Bg2 {[%clk 0:02:59.9]} 4... Nf6 {[%clk 0:02:58.7]} 5. Qe2 {[%clk 0:03:00.2]}
5... Be7 {[%clk 0:02:58.3]} 6. O-O {[%clk 0:02:59.8]} 6... d5 {[%clk 0:02:58]}
7. exd5 {[%clk 0:02:58.8]} 7... exd5 {[%clk 0:02:57.9]} 8. d4 {[%clk 0:02:40.1]}
8... cxd4 {[%clk 0:02:57.4]} 9. Rd1 {[%clk 0:02:37.3]} 9... O-O {[%clk
0:02:56.6]} 10. Nxd4 {[%clk 0:02:36.5]} 10... Bg4 {[%clk 0:02:53.4]} 11. Bf3
{[%clk 0:02:29.6]} 11... Nxd4 {[%clk 0:02:47.7]} 12. Rxd4 {[%clk 0:02:29.1]}
12... Bxf3 {[%clk 0:02:40.9]} 13. Qxf3 {[%clk 0:02:28.7]} 13... Bc5 {[%clk
0:02:38.1]} 14. Rd1 {[%clk 0:02:27.9]} 14... Qb6 {[%clk 0:02:24.2]} 15. Nc3
{[%clk 0:02:23.5]} 15... Ne4 {[%clk 0:02:18.2]} 16. Nxd5 {[%clk 0:02:18.6]}
16... Qe6 {[%clk 0:02:11.2]} 17. Be3 {[%clk 0:02:04.7]} 17... Rad8 {[%clk
0:01:55.9]} 18. Bxc5 {[%clk 0:01:58.3]} 18... Nxc5 {[%clk 0:01:50.3]} 19. c4
{[%clk 0:01:57.7]} 19... h6 {[%clk 0:01:43.9]} 20. Re1 {[%clk 0:01:56.1]} 20...
Qa6 {[%clk 0:01:32.2]} 21. b3 {[%clk 0:01:49.5]} 21... Kh8 {[%clk 0:01:31]} 22.
Re2 {[%clk 0:01:46]} 22... b5 {[%clk 0:01:30.1]} 23. Nc7 {[%clk 0:01:43.4]}
23... Qg6 {[%clk 0:01:21.7]} 24. Nxb5 {[%clk 0:01:42.3]} 24... Nd3 {[%clk
0:01:21.5]} 25. Nc3 {[%clk 0:01:29.9]} 25... Nb4 {[%clk 0:01:18.5]} 26. Nd5
{[%clk 0:01:24.3]} 26... Nd3 {[%clk 0:01:17.9]} 27. Rd1 {[%clk 0:01:14]} 27...
Nc5 {[%clk 0:01:17.7]} 28. b4 {[%clk 0:01:06.3]} 28... Ne6 {[%clk 0:01:17.2]}
29. h4 {[%clk 0:01:02.7]} 29... Rd6 {[%clk 0:01:08.1]} 30. Red2 {[%clk
0:01:00.5]} 30... Ra6 {[%clk 0:01:05.9]} 31. c5 {[%clk 0:00:52.8]} 31... Nd8
{[%clk 0:00:42.8]} 32. b5 {[%clk 0:00:48.3]} 32... Ra5 {[%clk 0:00:34.3]} 33.
Qb3 {[%clk 0:00:47.6]} 33... Ne6 {[%clk 0:00:32.8]} 34. Qb4 {[%clk 0:00:45.9]}
34... Qf5 {[%clk 0:00:17.3]} 35. Qxa5 {[%clk 0:00:43.6]} 35... Nxc5 {[%clk
0:00:17.3]} 36. Qb4 {[%clk 0:00:38.7]} 36... Ne6 {[%clk 0:00:17.3]} 37. Nf4
{[%clk 0:00:38.6]} 37... Re8 {[%clk 0:00:16]} 38. Nxe6 {[%clk 0:00:37.6]} 38...
Rxe6 {[%clk 0:00:16.9]} 39. Qf4 {[%clk 0:00:35.2]} 39... Qg6 {[%clk 0:00:16.3]}
40. Rd7 {[%clk 0:00:32.6]} 40... Kh7 {[%clk 0:00:16.4]} 41. Rxf7 {[%clk
0:00:31]} 41... Re2 {[%clk 0:00:15.3]} 42. Rdd7 {[%clk 0:00:29.5]} 42... Qb1+
{[%clk 0:00:12]} 43. Kg2 {[%clk 0:00:29.3]} 43... Re1 {[%clk 0:00:12.3]} 44.
Rxg7+ {[%clk 0:00:28.7]} 44... Kh8 {[%clk 0:00:11.5]} 45. Qf8# {[%clk
0:00:28.6]} 1-0

[Event "*** Titled Tuesday Blitz"]
[Site "Chess.com"]
[Date "2021.04.20"]
[Round "5"]
[White "IANOV0007"]
[Black "jacky72"]
[Result "0-1"]
[WhiteElo "2457"]
[BlackElo "2715"]
[TimeControl "180+1"]
[EndTime "10:54:56 PDT"]
[Termination "jacky72 won on time"]

1. Nf3 {[%clk 0:03:00.9]} 1... Nf6 {[%clk 0:02:59.9]} 2. g3 {[%clk 0:02:58.7]}
2... g6 {[%clk 0:03:00.8]} 3. b3 {[%clk 0:02:57.5]} 3... Bg7 {[%clk 0:03:01.7]}
4. Bb2 {[%clk 0:02:57.6]} 4... O-O {[%clk 0:03:02.6]} 5. Bg2 {[%clk 0:02:57.6]}
5... d6 {[%clk 0:03:03.3]} 6. d4 {[%clk 0:02:56.5]} 6... Nc6 {[%clk 0:03:03]} 7.
O-O {[%clk 0:02:55.8]} 7... e5 {[%clk 0:03:03.5]} 8. dxe5 {[%clk 0:02:54.8]}
8... dxe5 {[%clk 0:02:57.7]} 9. Nxe5 {[%clk 0:02:51]} 9... Qxd1 {[%clk
0:02:57.1]} 10. Rxd1 {[%clk 0:02:49.5]} 10... Nxe5 {[%clk 0:02:58]} 11. Bxe5
{[%clk 0:02:48.2]} 11... Re8 {[%clk 0:02:58.9]} 12. f4 {[%clk 0:02:39]} 12...
Bf5 {[%clk 0:02:56.1]} 13. Bxb7 {[%clk 0:02:32.2]} 13... Rab8 {[%clk 0:02:53.7]}
14. Bc6 {[%clk 0:02:31.5]} 14... Red8 {[%clk 0:02:53.4]} 15. Na3 {[%clk
0:02:25.7]} 15... Ng4 {[%clk 0:02:50.6]} 16. Bxg7 {[%clk 0:02:23.2]} 16... Kxg7
{[%clk 0:02:51.5]} 17. e4 {[%clk 0:02:18.7]} 17... Be6 {[%clk 0:02:48.7]} 18. c4
{[%clk 0:02:10.5]} 18... h5 {[%clk 0:02:44.8]} 19. Bd5 {[%clk 0:02:05.5]} 19...
Bd7 {[%clk 0:02:45.1]} 20. e5 {[%clk 0:02:02.1]} 20... h4 {[%clk 0:02:43.9]} 21.
Bf3 {[%clk 0:01:53.5]} 21... Bf5 {[%clk 0:02:39.9]} 22. Nb5 {[%clk 0:01:36]}
22... Ne3 {[%clk 0:02:39.3]} 23. Rxd8 {[%clk 0:01:32.8]} 23... Rxd8 {[%clk
0:02:40.2]} 24. Nxc7 {[%clk 0:01:31.3]} 24... Rd2 {[%clk 0:02:36.3]} 25. Nd5
{[%clk 0:01:29.7]} 25... Bg4 {[%clk 0:02:18.5]} 26. Be4 {[%clk 0:01:17.3]} 26...
Nf5 {[%clk 0:02:08.7]} 27. Bxf5 {[%clk 0:01:13]} 27... gxf5 {[%clk 0:02:08.7]}
28. Ne3 {[%clk 0:01:11]} 28... Bh3 {[%clk 0:02:02.2]} 29. c5 {[%clk 0:01:07.9]}
29... Re2 {[%clk 0:01:59.1]} 30. Nc4 {[%clk 0:01:04.4]} 30... Rg2+ {[%clk
0:01:58.3]} 31. Kh1 {[%clk 0:01:03.5]} 31... Rc2 {[%clk 0:01:58.8]} 32. a4
{[%clk 0:00:56.8]} 32... Bg2+ {[%clk 0:01:53.7]} 33. Kg1 {[%clk 0:00:55.5]}
33... Bc6 {[%clk 0:01:50.8]} 34. Nd6 {[%clk 0:00:50.1]} 34... Rg2+ {[%clk
0:01:49.4]} 35. Kf1 {[%clk 0:00:48.4]} 35... Kg6 {[%clk 0:01:44.6]} 36. gxh4
{[%clk 0:00:43.5]} 36... Rxh2 {[%clk 0:01:44.4]} 37. Re1 {[%clk 0:00:42.5]}
37... Rxh4 {[%clk 0:01:39.9]} 38. Kf2 {[%clk 0:00:38.8]} 38... Rxf4+ {[%clk
0:01:40.1]} 39. Ke3 {[%clk 0:00:38.6]} 39... Rg4 {[%clk 0:01:36.9]} 40. Kd3
{[%clk 0:00:31.5]} 40... Bd5 {[%clk 0:01:34.1]} 41. Re3 {[%clk 0:00:27.2]} 41...
f4 {[%clk 0:01:27.9]} 42. Re1 {[%clk 0:00:25.9]} 42... f3 {[%clk 0:01:27.2]} 43.
Rf1 {[%clk 0:00:23.3]} 43... a5 {[%clk 0:01:21.6]} 44. Kc3 {[%clk 0:00:22.8]}
44... Rf4 {[%clk 0:01:15.5]} 45. Rf2 {[%clk 0:00:21]} 45... Kg5 {[%clk
0:01:14.2]} 46. Nc4 {[%clk 0:00:19.4]} 46... Kh4 {[%clk 0:01:12.3]} 47. Nxa5
{[%clk 0:00:18.8]} 47... Kg3 {[%clk 0:01:12]} 48. Rf1 {[%clk 0:00:18.8]} 48...
f2 {[%clk 0:01:12.5]} 49. Rc1 {[%clk 0:00:17.5]} 49... Re4 {[%clk 0:01:06.7]}
50. Rf1 {[%clk 0:00:15.6]} 50... Re1 {[%clk 0:00:55.7]} 51. Rxf2 {[%clk
0:00:14.9]} 51... Kxf2 {[%clk 0:00:56.6]} 52. b4 {[%clk 0:00:11.9]} 52... Ke3
{[%clk 0:00:57]} 53. b5 {[%clk 0:00:10.6]} 53... Rc1+ {[%clk 0:00:56.2]} 54. Kb4
{[%clk 0:00:10.3]} 54... Kd4 {[%clk 0:00:56.8]} 55. c6 {[%clk 0:00:08.6]} 55...
Rb1+ {[%clk 0:00:57.1]} 56. Ka3 {[%clk 0:00:08.2]} 56... Kc3 {[%clk 0:00:57.7]}
0-1

[Event "*** Titled Tuesday Blitz"]
[Site "Chess.com"]
[Date "2021.04.20"]
[Round "5"]
[White "HackingKid98"]
[Black "AlphaHero0"]
[Result "1-0"]
[WhiteElo "2470"]
[BlackElo "2105"]
[TimeControl "180+1"]
[EndTime "10:54:57 PDT"]
[Termination "HackingKid98 won on time"]

1. d4 {[%clk 0:03:00.9]} 1... Nc6 {[%clk 0:02:58.9]} 2. Nf3 {[%clk 0:02:51.8]}
2... d6 {[%clk 0:02:59.2]} 3. c4 {[%clk 0:02:32]} 3... Nf6 {[%clk 0:02:57.1]} 4.
Nc3 {[%clk 0:02:31.9]} 4... Bg4 {[%clk 0:02:56.8]} 5. d5 {[%clk 0:02:27.1]} 5...
Bxf3 {[%clk 0:02:51.3]} 6. exf3 {[%clk 0:02:26.4]} 6... Ne5 {[%clk 0:02:51.3]}
7. f4 {[%clk 0:02:25.8]} 7... Ng6 {[%clk 0:02:51.3]} 8. g3 {[%clk 0:02:25.4]}
8... e5 {[%clk 0:02:47.6]} 9. dxe6 {[%clk 0:02:23.4]} 9... fxe6 {[%clk
0:02:47.4]} 10. Bg2 {[%clk 0:02:23.2]} 10... c6 {[%clk 0:02:26]} 11. O-O {[%clk
0:02:20.4]} 11... Be7 {[%clk 0:02:11.4]} 12. Re1 {[%clk 0:02:18.1]} 12... e5
{[%clk 0:02:04.1]} 13. fxe5 {[%clk 0:01:34.7]} 13... Nxe5 {[%clk 0:02:02.9]} 14.
b3 {[%clk 0:01:09.2]} 14... O-O {[%clk 0:01:57.3]} 15. Bb2 {[%clk 0:01:09.2]}
15... Nfg4 {[%clk 0:01:15.1]} 16. Ne4 {[%clk 0:01:04.4]} 16... d5 {[%clk
0:00:47.3]} 17. cxd5 {[%clk 0:00:52.8]} 17... cxd5 {[%clk 0:00:48.2]} 18. Bxe5
{[%clk 0:00:27.7]} 18... Nxe5 {[%clk 0:00:46.8]} 19. Nc3 {[%clk 0:00:27.5]}
19... d4 {[%clk 0:00:27.6]} 20. Nb5 {[%clk 0:00:21.4]} 20... Nc6 {[%clk
0:00:25.6]} 21. Bxc6 {[%clk 0:00:20.4]} 21... bxc6 {[%clk 0:00:25.7]} 22. Nxd4
{[%clk 0:00:20.2]} 22... Bf6 {[%clk 0:00:25.6]} 23. Ne6 {[%clk 0:00:18.3]} 23...
Qb6 {[%clk 0:00:22.7]} 24. Nxf8 {[%clk 0:00:17.8]} 24... Bxa1 {[%clk 0:00:19.1]}
25. Qxa1 {[%clk 0:00:18.7]} 25... Rxf8 {[%clk 0:00:17.7]} 26. Qb2 {[%clk
0:00:18.7]} 26... Qd8 {[%clk 0:00:10.9]} 27. Qe2 {[%clk 0:00:18.2]} 27... Kh8
{[%clk 0:00:08.6]} 28. Rd1 {[%clk 0:00:18.2]} 28... Qf6 {[%clk 0:00:08.3]} 29.
Qd2 {[%clk 0:00:17.5]} 29... h6 {[%clk 0:00:07.8]} 30. Qd4 {[%clk 0:00:17.3]}
30... Qf7 {[%clk 0:00:07.5]} 31. Qe3 {[%clk 0:00:16.8]} 31... c5 {[%clk
0:00:07]} 32. Qxc5 {[%clk 0:00:15.9]} 32... Qf3 {[%clk 0:00:07]} 33. Qd4 {[%clk
0:00:14.6]} 33... a5 {[%clk 0:00:04.6]} 34. Rd3 {[%clk 0:00:14.3]} 34... Qf7
{[%clk 0:00:03.5]} 35. Qe3 {[%clk 0:00:13.8]} 35... Qf6 {[%clk 0:00:03]} 36. Qd2
{[%clk 0:00:13.3]} 36... Qf7 {[%clk 0:00:02.2]} 37. Rd8 {[%clk 0:00:12.8]} 1-0

[Event "*** Titled Tuesday Blitz"]
[Site "Chess.com"]
[Date "2021.04.20"]
[Round "5"]
[White "Witik"]
[Black "Cambek64"]
[Result "1-0"]
[WhiteElo "2682"]
[BlackElo "2478"]
[TimeControl "180+1"]
[EndTime "10:54:58 PDT"]
[Termination "Witik won by resignation"]

1. d4 {[%clk 0:02:59.9]} 1... Nf6 {[%clk 0:02:56.7]} 2. Bf4 {[%clk 0:02:59.6]}
2... d6 {[%clk 0:02:57.1]} 3. Nf3 {[%clk 0:02:59.5]} 3... g6 {[%clk 0:02:56.7]}
4. c4 {[%clk 0:02:59.2]} 4... Bg7 {[%clk 0:02:56.7]} 5. Nc3 {[%clk 0:02:59.6]}
5... O-O {[%clk 0:02:54.7]} 6. e3 {[%clk 0:03:00]} 6... Nbd7 {[%clk 0:02:39]} 7.
h3 {[%clk 0:02:59.7]} 7... c5 {[%clk 0:02:39.4]} 8. Be2 {[%clk 0:02:56.7]} 8...
b6 {[%clk 0:02:34.6]} 9. O-O {[%clk 0:02:56.3]} 9... Bb7 {[%clk 0:02:34.9]} 10.
Bh2 {[%clk 0:02:56.4]} 10... a6 {[%clk 0:02:32.8]} 11. Qc2 {[%clk 0:02:55.5]}
11... Rc8 {[%clk 0:02:25]} 12. Rad1 {[%clk 0:02:41.6]} 12... Qc7 {[%clk
0:02:13]} 13. d5 {[%clk 0:02:35.1]} 13... Qb8 {[%clk 0:02:07.7]} 14. a4 {[%clk
0:02:29.5]} 14... Ne8 {[%clk 0:02:05.5]} 15. e4 {[%clk 0:02:20.3]} 15... Nc7
{[%clk 0:02:04.4]} 16. Nd2 {[%clk 0:02:09.2]} 16... Rcd8 {[%clk 0:01:54.8]} 17.
f4 {[%clk 0:02:08.7]} 17... e6 {[%clk 0:01:49.5]} 18. f5 {[%clk 0:02:08.4]}
18... e5 {[%clk 0:01:41.8]} 19. g4 {[%clk 0:02:02.5]} 19... f6 {[%clk
0:01:39.8]} 20. Nf3 {[%clk 0:01:55.5]} 20... Rf7 {[%clk 0:01:34]} 21. h4 {[%clk
0:01:54.7]} 21... Nf8 {[%clk 0:01:34.2]} 22. Bg3 {[%clk 0:01:48.6]} 22... Bc8
{[%clk 0:01:34]} 23. Kh2 {[%clk 0:01:47.7]} 23... Bd7 {[%clk 0:01:34.4]} 24. Bd3
{[%clk 0:01:34.3]} 24... b5 {[%clk 0:01:34.7]} 25. axb5 {[%clk 0:01:34.7]} 25...
axb5 {[%clk 0:01:35]} 26. b3 {[%clk 0:01:35.4]} 26... b4 {[%clk 0:01:32.4]} 27.
Ne2 {[%clk 0:01:33.1]} 27... Qb7 {[%clk 0:01:30.2]} 28. g5 {[%clk 0:01:29.9]}
28... Ra8 {[%clk 0:01:20.1]} 29. h5 {[%clk 0:01:21.7]} 29... Qc8 {[%clk
0:01:10.5]} 30. Rg1 {[%clk 0:01:15.4]} 30... Kh8 {[%clk 0:00:54.6]} 31. h6
{[%clk 0:01:13.4]} 31... gxf5 {[%clk 0:00:43.9]} 32. exf5 {[%clk 0:01:04.4]}
32... fxg5 {[%clk 0:00:38.8]} 33. Nxg5 {[%clk 0:00:57.2]} 33... Qe8 {[%clk
0:00:31.8]} 34. Nxf7+ {[%clk 0:00:55]} 34... Qxf7 {[%clk 0:00:32.2]} 35. hxg7+
{[%clk 0:00:55]} 35... Qxg7 {[%clk 0:00:32.7]} 36. Qd2 {[%clk 0:00:48.7]} 36...
Qf7 {[%clk 0:00:30]} 37. Bh4 {[%clk 0:00:45.3]} 37... Ne8 {[%clk 0:00:22.7]} 38.
Qh6 {[%clk 0:00:39.9]} 38... Ra2 {[%clk 0:00:21.8]} 39. Rg2 {[%clk 0:00:32.3]}
39... Bxf5 {[%clk 0:00:18.4]} 40. Rf1 {[%clk 0:00:24]} 40... Ng7 {[%clk
0:00:13.8]} 41. Rxg7 {[%clk 0:00:18]} 41... Qxg7 {[%clk 0:00:13]} 42. Bf6 {[%clk
0:00:18]} 1-0

[Event "*** Titled Tuesday Blitz"]
[Site "Chess.com"]
[Date "2021.04.20"]
[Round "5"]
[White "Chernov_Alexander_A"]
[Black "dodorox"]
[Result "0-1"]
[WhiteElo "2303"]
[BlackElo "2113"]
[TimeControl "180+1"]
[EndTime "10:55:01 PDT"]
[Termination "dodorox won on time"]

1. Nf3 {[%clk 0:01:30]} 1... d5 {[%clk 0:02:58.2]} 2. g3 {[%clk 0:01:29.8]} 2...
Nf6 {[%clk 0:02:58.1]} 3. Bg2 {[%clk 0:01:30.2]} 3... e6 {[%clk 0:02:58.7]} 4.
O-O {[%clk 0:01:30.1]} 4... c5 {[%clk 0:02:59.3]} 5. d3 {[%clk 0:01:30.3]} 5...
Nc6 {[%clk 0:02:59.2]} 6. Qe1 {[%clk 0:01:30]} 6... Be7 {[%clk 0:02:55]} 7. e3
{[%clk 0:01:30.1]} 7... O-O {[%clk 0:02:54.9]} 8. Nbd2 {[%clk 0:01:27.1]} 8...
b6 {[%clk 0:02:54]} 9. b3 {[%clk 0:01:26.3]} 9... Bb7 {[%clk 0:02:53.6]} 10. Bb2
{[%clk 0:01:25.7]} 10... Qc7 {[%clk 0:02:51.2]} 11. a3 {[%clk 0:01:19.3]} 11...
Rad8 {[%clk 0:02:48.5]} 12. Qe2 {[%clk 0:01:17.4]} 12... e5 {[%clk 0:02:45.8]}
13. e4 {[%clk 0:01:12.6]} 13... d4 {[%clk 0:02:40.8]} 14. a4 {[%clk 0:01:09.6]}
14... a6 {[%clk 0:02:35.7]} 15. Nh4 {[%clk 0:01:06.6]} 15... g6 {[%clk
0:02:34.9]} 16. Rae1 {[%clk 0:01:00.2]} 16... Rfe8 {[%clk 0:02:33.7]} 17. f4
{[%clk 0:00:59.2]} 17... exf4 {[%clk 0:02:23.5]} 18. gxf4 {[%clk 0:00:57.5]}
18... Nxe4 {[%clk 0:02:14.4]} 19. Nxg6 {[%clk 0:00:54.6]} 19... hxg6 {[%clk
0:01:22.1]} 20. dxe4 {[%clk 0:00:51.3]} 20... Nb4 {[%clk 0:01:14.3]} 21. Nc4
{[%clk 0:00:45.9]} 21... Bf6 {[%clk 0:01:06.1]} 22. e5 {[%clk 0:00:43.8]} 22...
b5 {[%clk 0:01:00.8]} 23. axb5 {[%clk 0:00:38.7]} 23... axb5 {[%clk 0:01:01]}
24. Bxb7 {[%clk 0:00:33.4]} 24... Qxb7 {[%clk 0:00:53.7]} 25. Na3 {[%clk
0:00:27.5]} 25... Rb8 {[%clk 0:00:34.1]} 26. Rc1 {[%clk 0:00:20.2]} 26... Bg7
{[%clk 0:00:30.2]} 27. Qg4 {[%clk 0:00:17.3]} 27... Qe4 {[%clk 0:00:25]} 28.
Rce1 {[%clk 0:00:15.2]} 28... Qf5 {[%clk 0:00:23.6]} 29. Qxf5 {[%clk 0:00:14.1]}
29... gxf5 {[%clk 0:00:24.5]} 30. Rf2 {[%clk 0:00:11.4]} 30... Kf8 {[%clk
0:00:23.6]} 31. Rfe2 {[%clk 0:00:10.8]} 31... Nd5 {[%clk 0:00:21.6]} 32. Bc1
{[%clk 0:00:08.7]} 32... Nc3 {[%clk 0:00:21.2]} 33. Rg2 {[%clk 0:00:08]} 33...
Ra8 {[%clk 0:00:21.3]} 34. h3 {[%clk 0:00:03.8]} 34... Bh6 {[%clk 0:00:21.1]}
35. Rf2 {[%clk 0:00:01.6]} 35... Ne4 {[%clk 0:00:20.5]} 36. Kg2 {[%clk
0:00:02.1]} 36... Nxf2 {[%clk 0:00:19.8]} 37. Kxf2 {[%clk 0:00:02]} 37... Bxf4
{[%clk 0:00:19.5]} 38. Bd2 {[%clk 0:00:01.1]} 38... Bxd2 {[%clk 0:00:19.1]} 39.
Re2 {[%clk 0:00:01.1]} 39... Rxa3 {[%clk 0:00:17.8]} 40. Kf3 {[%clk 0:00:02]}
40... Bc3 {[%clk 0:00:17.1]} 0-1